[Event "Live Chess"]
[Site "Chess.com"]
[Date "2023.05.21"]
[Round "-"]
[White "wot-not"]
[Black "Ocelot32"]
[Result "0-1"]
[WhiteElo "1558"]
[BlackElo "1394"]
[TimeControl "300"]
[EndTime "4:29:44 PDT"]
[Termination "Ocelot32 won by resignation"]

1. e4 {[%clk 0:04:56.9]} 1... e6 {[%clk 0:04:55]} 2. f4 {[%clk 0:04:54.7]} 2...
d5 {[%clk 0:04:53.6]} 3. e5 {[%clk 0:04:48.4]} 3... Nh6 {[%clk 0:04:52.3]} 4.
Nf3 {[%clk 0:04:46.3]} 4... c5 {[%clk 0:04:50.8]} 5. d4 {[%clk 0:04:39]} 5...
Nc6 {[%clk 0:04:47.8]} 6. Bd3 {[%clk 0:04:33.4]} 6... cxd4 {[%clk 0:04:43.9]} 7.
O-O {[%clk 0:04:32.4]} 7... Bc5 {[%clk 0:04:33.1]} 8. Nbd2 {[%clk 0:04:29.8]}
8... Nb4 {[%clk 0:04:31.3]} 9. Bb5+ {[%clk 0:04:20.9]} 9... Bd7 {[%clk
0:04:26.5]} 10. Bxd7+ {[%clk 0:04:20.1]} 10... Qxd7 {[%clk 0:04:26]} 11. Nb3
{[%clk 0:04:19.3]} 11... Bb6 {[%clk 0:04:22.1]} 12. Kh1 {[%clk 0:04:17.9]} 12...
Nf5 {[%clk 0:04:15.2]} 13. Nbxd4 {[%clk 0:03:39.1]} 13... Nxd4 {[%clk
0:04:08.6]} 14. Nxd4 {[%clk 0:03:37.9]} 14... O-O {[%clk 0:03:55.3]} 15. f5
{[%clk 0:03:24.2]} 15... exf5 {[%clk 0:03:45.7]} 16. Nxf5 {[%clk 0:02:59.3]}
16... Rac8 {[%clk 0:03:34.6]} 17. Qg4 {[%clk 0:02:19.6]} 17... g6 {[%clk
0:03:01.3]} 18. Bh6 {[%clk 0:02:08.2]} 18... Qe6 {[%clk 0:02:50.1]} 19. Bxf8
{[%clk 0:02:04.2]} 19... Rxf8 {[%clk 0:02:48.1]} 20. Nh6+ {[%clk 0:02:03.3]}
20... Kg7 {[%clk 0:02:45.8]} 21. Qxe6 {[%clk 0:02:02.3]} 21... fxe6 {[%clk
0:02:44.6]} 22. Rxf8 {[%clk 0:02:00.9]} 22... Kxf8 {[%clk 0:02:43.2]} 23. c3
{[%clk 0:01:57.8]} 23... Nd3 {[%clk 0:02:40.5]} 24. Rf1+ {[%clk 0:01:51.4]}
24... Kg7 {[%clk 0:02:38.8]} 25. Ng4 {[%clk 0:01:46.3]} 25... h5 {[%clk
0:02:36.8]} 26. Nf2 {[%clk 0:01:28.6]} 26... Nxf2+ {[%clk 0:02:34.4]} 27. Rxf2
{[%clk 0:01:26.7]} 27... Bxf2 {[%clk 0:02:32.8]} 0-1

[Event "Live Chess"]
[Site "Chess.com"]
[Date "2023.05.21"]
[Round "-"]
[White "davigator"]
[Black "Shepherds_Pie"]
[Result "1-0"]
[WhiteElo "2326"]
[BlackElo "1950"]
[TimeControl "300"]
[EndTime "4:29:45 PDT"]
[Termination "davigator won by resignation"]

1. e4 {[%clk 0:04:58.1]} 1... e6 {[%clk 0:04:48.3]} 2. d4 {[%clk 0:04:56.5]}
2... d5 {[%clk 0:04:47.3]} 3. Nc3 {[%clk 0:04:55.7]} 3... Bb4 {[%clk 0:04:45.7]}
4. e5 {[%clk 0:04:54.9]} 4... c5 {[%clk 0:04:43.8]} 5. a3 {[%clk 0:04:54.3]}
5... Ba5 {[%clk 0:04:41.8]} 6. b4 {[%clk 0:04:52.6]} 6... cxd4 {[%clk
0:04:39.9]} 7. Nb5 {[%clk 0:04:51]} 7... Bc7 {[%clk 0:04:39]} 8. f4 {[%clk
0:04:37.9]} 8... Ne7 {[%clk 0:04:36.3]} 9. Nf3 {[%clk 0:04:36.1]} 9... Bd7
{[%clk 0:04:33.7]} 10. Nxc7+ {[%clk 0:04:32.8]} 10... Qxc7 {[%clk 0:04:31.8]}
11. Bb2 {[%clk 0:04:29.1]} 11... Nbc6 {[%clk 0:04:28.6]} 12. Bd3 {[%clk
0:04:12]} 12... a6 {[%clk 0:04:21]} 13. O-O {[%clk 0:04:10.6]} 13... Nf5 {[%clk
0:04:16.5]} 14. Bxf5 {[%clk 0:04:08.5]} 14... exf5 {[%clk 0:04:15.5]} 15. Nxd4
{[%clk 0:04:04.3]} 15... Be6 {[%clk 0:04:11.9]} 16. Rf3 {[%clk 0:03:58.8]} 16...
O-O {[%clk 0:04:09.4]} 17. Rh3 {[%clk 0:03:53.1]} 17... g6 {[%clk 0:04:05.1]}
18. Rc1 {[%clk 0:03:44.1]} 18... Nxd4 {[%clk 0:04:03.1]} 19. Bxd4 {[%clk
0:03:42.9]} 19... Qc4 {[%clk 0:04:02.1]} 20. c3 {[%clk 0:03:35.6]} 20... Rac8
{[%clk 0:03:58.6]} 21. Qe1 {[%clk 0:03:34.7]} 21... h5 {[%clk 0:03:53.7]} 22.
Rd1 {[%clk 0:03:30.6]} 22... a5 {[%clk 0:03:45.6]} 23. Qg3 {[%clk 0:03:28.4]}
23... Kh7 {[%clk 0:03:40.8]} 24. Qg5 {[%clk 0:03:21.4]} 24... Qe2 {[%clk
0:03:26.5]} 25. Rf1 {[%clk 0:03:19.4]} 25... Rc4 {[%clk 0:03:14.2]} 26. Qe7
{[%clk 0:03:16.5]} 26... Kg8 {[%clk 0:03:08.9]} 27. Rhf3 {[%clk 0:03:12.9]}
27... axb4 {[%clk 0:03:05.9]} 28. axb4 {[%clk 0:03:11.3]} 28... Rfc8 {[%clk
0:02:51.8]} 29. Qxb7 {[%clk 0:03:09.9]} 29... R4c7 {[%clk 0:02:50.3]} 30. Qb6
{[%clk 0:03:01.3]} 30... Qc4 {[%clk 0:02:44.2]} 31. Qa5 {[%clk 0:02:52]} 31...
Bd7 {[%clk 0:02:31.8]} 32. Re1 {[%clk 0:02:38.3]} 32... Be6 {[%clk 0:02:30.3]}
33. Qa1 {[%clk 0:02:32]} 33... Qc6 {[%clk 0:02:24.7]} 34. Qd1 {[%clk 0:02:30.1]}
34... Ra8 {[%clk 0:02:22.5]} 35. Rg3 {[%clk 0:02:28.5]} 35... Kh7 {[%clk
0:02:17.9]} 36. Rg5 {[%clk 0:02:27.5]} 36... Ra2 {[%clk 0:02:12.3]} 37. Re2
{[%clk 0:02:14.2]} 37... Rxe2 {[%clk 0:02:03.3]} 38. Qxe2 {[%clk 0:02:12.8]}
38... Rc8 {[%clk 0:02:02]} 39. h3 {[%clk 0:02:09.1]} 39... Ra8 {[%clk
0:02:00.7]} 40. Kh2 {[%clk 0:02:07.7]} 40... Ra1 {[%clk 0:01:34.5]} 41. Rg3
{[%clk 0:02:06.1]} 41... h4 {[%clk 0:01:27]} 42. Rf3 {[%clk 0:02:02.9]} 42...
Qc8 {[%clk 0:01:22.7]} 43. Qf2 {[%clk 0:01:58.3]} 43... Qd8 {[%clk 0:01:21.2]}
44. b5 {[%clk 0:01:55.8]} 44... Rb1 {[%clk 0:01:18.7]} 45. b6 {[%clk 0:01:54.6]}
45... Bc8 {[%clk 0:01:13.1]} 46. Qc2 {[%clk 0:01:53.3]} 46... Rb5 {[%clk
0:01:09.5]} 47. Rf1 {[%clk 0:01:50]} 47... Bb7 {[%clk 0:01:02.9]} 48. Ra1 {[%clk
0:01:47.9]} 48... Qc8 {[%clk 0:00:59.1]} 49. Qa4 {[%clk 0:01:45.3]} 49... Qc6
{[%clk 0:00:56.5]} 50. Qc2 {[%clk 0:01:33.8]} 50... Qc4 {[%clk 0:00:50.4]} 51.
Qf2 {[%clk 0:01:32.6]} 1-0

[Event "Live Chess"]
[Site "Chess.com"]
[Date "2023.05.21"]
[Round "-"]
[White "Duke_of_Bebington"]
[Black "Doge_Dandolo"]
[Result "0-1"]
[WhiteElo "1577"]
[BlackElo "1884"]
[TimeControl "300"]
[EndTime "4:29:47 PDT"]
[Termination "Doge_Dandolo won by resignation"]

1. e4 {[%clk 0:04:58.2]} 1... c6 {[%clk 0:04:57.6]} 2. d4 {[%clk 0:04:56.7]}
2... d5 {[%clk 0:04:57]} 3. e5 {[%clk 0:04:53.8]} 3... Bf5 {[%clk 0:04:55.7]} 4.
g4 {[%clk 0:04:52.7]} 4... Be4 {[%clk 0:04:52.8]} 5. f3 {[%clk 0:04:51.3]} 5...
Bg6 {[%clk 0:04:51.6]} 6. h4 {[%clk 0:04:50.9]} 6... h5 {[%clk 0:04:50.5]} 7.
Bd3 {[%clk 0:04:42.3]} 7... Bxd3 {[%clk 0:04:47.2]} 8. Qxd3 {[%clk 0:04:42.2]}
8... hxg4 {[%clk 0:04:45.9]} 9. e6 {[%clk 0:04:38.4]} 9... Qd6 {[%clk
0:04:42.8]} 10. exf7+ {[%clk 0:04:34.4]} 10... Kxf7 {[%clk 0:04:38.4]} 11. Qf5+
{[%clk 0:04:29.2]} 11... Nf6 {[%clk 0:04:36.1]} 12. fxg4 {[%clk 0:04:22.4]}
12... Qg3+ {[%clk 0:04:32.2]} 13. Qf2 {[%clk 0:04:17.5]} 13... Qxg4 {[%clk
0:04:26.2]} 14. Nf3 {[%clk 0:04:15.9]} 14... Nbd7 {[%clk 0:04:20.3]} 15. Bg5
{[%clk 0:04:07.2]} 15... Kg8 {[%clk 0:04:08.5]} 16. Nbd2 {[%clk 0:04:03.1]}
16... Ne4 {[%clk 0:03:58.5]} 17. Nxe4 {[%clk 0:04:00.5]} 17... dxe4 {[%clk
0:03:57.2]} 18. Ne5 {[%clk 0:03:52.2]} 18... Nxe5 {[%clk 0:03:54.7]} 19. dxe5
{[%clk 0:03:52.1]} 19... Rd8 {[%clk 0:03:36.9]} 20. Qe3 {[%clk 0:03:37.6]} 20...
g6 {[%clk 0:03:01.5]} 21. Rf1 {[%clk 0:03:26.6]} 21... Bg7 {[%clk 0:02:56.4]}
22. Qb3+ {[%clk 0:03:23]} 22... Kh7 {[%clk 0:02:51.9]} 23. Bxe7 {[%clk
0:03:00.4]} 23... Rd7 {[%clk 0:02:45.5]} 24. Bf6 {[%clk 0:02:31]} 24... Re8
{[%clk 0:02:34.2]} 25. Qe3 {[%clk 0:02:21.2]} 25... Bxf6 {[%clk 0:02:26.8]} 26.
exf6 {[%clk 0:02:18.4]} 26... Qxh4+ {[%clk 0:02:15.7]} 27. Qf2 {[%clk 0:02:15]}
27... Qxf2+ {[%clk 0:02:11.6]} 28. Rxf2 {[%clk 0:02:14.9]} 28... g5 {[%clk
0:02:07.3]} 29. Ke2 {[%clk 0:02:12.5]} 29... Kg6 {[%clk 0:02:05.4]} 30. Raf1
{[%clk 0:02:11.6]} 30... Rf7 {[%clk 0:02:04.1]} 31. Ke3 {[%clk 0:02:10]} 31...
Re6 {[%clk 0:02:02.5]} 32. Rf5 {[%clk 0:02:00.9]} 32... Rexf6 {[%clk 0:01:59.1]}
33. Rxf6+ {[%clk 0:01:59.5]} 33... Rxf6 {[%clk 0:01:58.4]} 34. Rxf6+ {[%clk
0:01:59]} 34... Kxf6 {[%clk 0:01:57.3]} 35. Kxe4 {[%clk 0:01:58.9]} 35... Ke6
{[%clk 0:01:52]} 36. a3 {[%clk 0:01:53.8]} 36... a5 {[%clk 0:01:49.1]} 37. Kf3
{[%clk 0:01:51.7]} 37... Kf5 {[%clk 0:01:47.6]} 38. b3 {[%clk 0:01:46.8]} 38...
b5 {[%clk 0:01:45.2]} 39. a4 {[%clk 0:01:42.9]} 39... b4 {[%clk 0:01:41.7]} 40.
Ke3 {[%clk 0:01:40.1]} 40... g4 {[%clk 0:01:38.1]} 41. Kf2 {[%clk 0:01:39]}
41... Kf4 {[%clk 0:01:37]} 42. Kg2 {[%clk 0:01:38.1]} 42... g3 {[%clk 0:01:35]}
43. Kg1 {[%clk 0:01:36]} 43... Kf3 {[%clk 0:01:32.8]} 0-1

[Event "Live Chess"]
[Site "Chess.com"]
[Date "2023.05.21"]
[Round "-"]
[White "ameetghasi100"]
[Black "TheSmoulderingMaster"]
[Result "1-0"]
[WhiteElo "2591"]
[BlackElo "1627"]
[TimeControl "300"]
[EndTime "4:29:48 PDT"]
[Termination "ameetghasi100 won by resignation"]

1. d4 {[%clk 0:04:59.2]} 1... Nf6 {[%clk 0:04:58.8]} 2. Nc3 {[%clk 0:04:59.1]}
2... d6 {[%clk 0:04:57.4]} 3. Bg5 {[%clk 0:04:58.3]} 3... Nbd7 {[%clk
0:04:54.2]} 4. e4 {[%clk 0:04:57.5]} 4... e5 {[%clk 0:04:49.7]} 5. Nf3 {[%clk
0:04:56.8]} 5... Be7 {[%clk 0:04:47.5]} 6. Bc4 {[%clk 0:04:55.1]} 6... O-O
{[%clk 0:04:46]} 7. O-O {[%clk 0:04:54]} 7... c6 {[%clk 0:04:42.6]} 8. a4 {[%clk
0:04:53.4]} 8... Qb6 {[%clk 0:04:31.6]} 9. Bb3 {[%clk 0:04:49.4]} 9... h6 {[%clk
0:04:18.2]} 10. Bh4 {[%clk 0:04:37.7]} 10... Re8 {[%clk 0:04:15.9]} 11. a5
{[%clk 0:04:33]} 11... Qc7 {[%clk 0:04:05.6]} 12. a6 {[%clk 0:04:23.9]} 12...
bxa6 {[%clk 0:04:01.9]} 13. d5 {[%clk 0:04:23]} 13... cxd5 {[%clk 0:03:58.2]}
14. Nxd5 {[%clk 0:04:20.2]} 14... Nxd5 {[%clk 0:03:56.2]} 15. Bxd5 {[%clk
0:04:20.1]} 15... Rb8 {[%clk 0:03:54.3]} 16. Bxe7 {[%clk 0:04:18.7]} 16... Rxe7
{[%clk 0:03:53]} 17. b3 {[%clk 0:04:18]} 17... Nf6 {[%clk 0:03:48.4]} 18. Nd2
{[%clk 0:04:14.5]} 18... Nxd5 {[%clk 0:03:43.7]} 19. exd5 {[%clk 0:04:14.4]}
19... Bb7 {[%clk 0:03:38.7]} 20. c4 {[%clk 0:04:13.3]} 20... Ba8 {[%clk
0:03:36.4]} 21. Re1 {[%clk 0:04:12.5]} 21... f6 {[%clk 0:03:26.2]} 22. Rxa6
{[%clk 0:04:04.4]} 22... Qc5 {[%clk 0:03:21.9]} 23. Qa1 {[%clk 0:04:00.8]} 23...
Qb4 {[%clk 0:03:17.8]} 24. Qa2 {[%clk 0:03:55.9]} 24... Rbb7 {[%clk 0:03:02.8]}
25. Re3 {[%clk 0:03:44.8]} 25... Qc5 {[%clk 0:02:51.5]} 26. Ne4 {[%clk
0:03:42.6]} 26... Qd4 {[%clk 0:02:47]} 27. h3 {[%clk 0:03:41.4]} 27... f5 {[%clk
0:02:39.2]} 28. Nxd6 {[%clk 0:03:39.3]} 28... Rbd7 {[%clk 0:02:34.8]} 29. Nxf5
{[%clk 0:03:37.7]} 29... Qf4 {[%clk 0:02:24]} 30. Nxe7+ {[%clk 0:03:35.9]} 1-0

[Event "Live Chess"]
[Site "Chess.com"]
[Date "2023.05.21"]
[Round "-"]
[White "Abde2012"]
[Black "Biranidun"]
[Result "0-1"]
[WhiteElo "752"]
[BlackElo "2533"]
[TimeControl "300"]
[EndTime "4:30:00 PDT"]
[Termination "Biranidun won by resignation"]

1. d4 {[%clk 0:04:56]} 1... Nf6 {[%clk 0:04:58.4]} 2. c4 {[%clk 0:04:55]} 2...
g6 {[%clk 0:04:57.8]} 3. e3 {[%clk 0:04:54.4]} 3... Bg7 {[%clk 0:04:57.1]} 4.
Nc3 {[%clk 0:04:52.4]} 4... O-O {[%clk 0:04:56.1]} 5. Bd2 {[%clk 0:04:51.9]}
5... c5 {[%clk 0:04:54.7]} 6. Bd3 {[%clk 0:04:51.5]} 6... cxd4 {[%clk
0:04:53.9]} 7. exd4 {[%clk 0:04:50.6]} 7... d5 {[%clk 0:04:53.8]} 8. cxd5 {[%clk
0:04:48.5]} 8... Nxd5 {[%clk 0:04:53.7]} 9. Nxd5 {[%clk 0:04:47.6]} 9... Qxd5
{[%clk 0:04:53.6]} 10. Nf3 {[%clk 0:04:45.8]} 10... Bg4 {[%clk 0:04:52.3]} 11.
g3 {[%clk 0:04:43.2]} 11... Bxf3 {[%clk 0:04:51.3]} 12. Qxf3 {[%clk 0:04:41.8]}
12... Qxf3 {[%clk 0:04:50.2]} 0-1

[Event "Live Chess"]
[Site "Chess.com"]
[Date "2023.05.21"]
[Round "-"]
[White "diana21strabt"]
[Black "Ian-Morley"]
[Result "1/2-1/2"]
[WhiteElo "1757"]
[BlackElo "1062"]
[TimeControl "300"]
[EndTime "4:30:41 PDT"]
[Termination "Game drawn - insufficient material"]

1. e4 {[%clk 0:04:58.6]} 1... e5 {[%clk 0:04:58.5]} 2. Nf3 {[%clk 0:04:57.8]}
2... Nc6 {[%clk 0:04:57.5]} 3. d4 {[%clk 0:04:57.1]} 3... exd4 {[%clk
0:04:56.5]} 4. Bc4 {[%clk 0:04:56.5]} 4... Nf6 {[%clk 0:04:53.9]} 5. O-O {[%clk
0:04:55.4]} 5... d5 {[%clk 0:04:50.9]} 6. exd5 {[%clk 0:04:53.4]} 6... Nxd5
{[%clk 0:04:50.2]} 7. Re1+ {[%clk 0:04:52.5]} 7... Be7 {[%clk 0:04:49.1]} 8.
Nxd4 {[%clk 0:04:47.7]} 8... Na5 {[%clk 0:04:47.9]} 9. Bxd5 {[%clk 0:04:35.4]}
9... Qxd5 {[%clk 0:04:46.4]} 10. Qe2 {[%clk 0:04:31.3]} 10... Be6 {[%clk
0:04:42.1]} 11. Nxe6 {[%clk 0:04:29.4]} 11... Qxe6 {[%clk 0:04:39.5]} 12. Qxe6
{[%clk 0:04:28.1]} 12... fxe6 {[%clk 0:04:39]} 13. Rxe6 {[%clk 0:04:26.9]} 13...
Kf7 {[%clk 0:04:37.9]} 14. Re5 {[%clk 0:04:22.5]} 14... Rad8 {[%clk 0:04:36.1]}
15. Nc3 {[%clk 0:04:18.8]} 15... Nc4 {[%clk 0:04:34.2]} 16. Re1 {[%clk
0:04:10.4]} 16... Bf6 {[%clk 0:04:31.5]} 17. Bf4 {[%clk 0:04:00]} 17... Bxc3
{[%clk 0:04:26]} 18. bxc3 {[%clk 0:03:58.5]} 18... c6 {[%clk 0:04:21.4]} 19.
Rab1 {[%clk 0:03:56.5]} 19... b6 {[%clk 0:04:18.7]} 20. g3 {[%clk 0:03:51.4]}
20... Rhe8 {[%clk 0:04:17.4]} 21. Kg2 {[%clk 0:03:47.7]} 21... Rxe1 {[%clk
0:04:16]} 22. Rxe1 {[%clk 0:03:46.3]} 22... Re8 {[%clk 0:04:14.2]} 23. Rxe8
{[%clk 0:03:40.5]} 23... Kxe8 {[%clk 0:04:12.8]} 24. Bb8 {[%clk 0:03:39.6]}
24... a6 {[%clk 0:04:11.1]} 25. Kf3 {[%clk 0:03:37.6]} 25... b5 {[%clk 0:04:10]}
26. Ke4 {[%clk 0:03:35.8]} 26... Kd7 {[%clk 0:03:42.8]} 27. Kd4 {[%clk
0:03:20.3]} 27... Nd2 {[%clk 0:03:37.6]} 28. h4 {[%clk 0:02:57]} 28... h6 {[%clk
0:03:23.8]} 29. Bf4 {[%clk 0:02:50]} 29... Nc4 {[%clk 0:03:19.3]} 30. Be5 {[%clk
0:02:41.7]} 30... g5 {[%clk 0:03:16.6]} 31. hxg5 {[%clk 0:02:38.6]} 31... hxg5
{[%clk 0:03:15.9]} 32. Bf6 {[%clk 0:02:34.3]} 32... g4 {[%clk 0:03:10.6]} 33.
Ke4 {[%clk 0:02:30.8]} 33... Ke6 {[%clk 0:03:04.1]} 34. Bd4 {[%clk 0:02:27.8]}
34... Na3 {[%clk 0:02:59.4]} 35. Kf4 {[%clk 0:02:22.3]} 35... Nxc2 {[%clk
0:02:58.2]} 36. Bg7 {[%clk 0:02:12.4]} 36... b4 {[%clk 0:02:50.8]} 37. cxb4
{[%clk 0:02:09.6]} 37... Nxb4 {[%clk 0:02:49.7]} 38. a3 {[%clk 0:02:06.2]} 38...
Nd3+ {[%clk 0:02:47.1]} 39. Kxg4 {[%clk 0:01:51.5]} 39... Nxf2+ {[%clk
0:02:45.8]} 40. Kf3 {[%clk 0:01:50.7]} 40... Nd3 {[%clk 0:02:42.7]} 41. g4
{[%clk 0:01:47.5]} 41... Kf7 {[%clk 0:02:35]} 42. Bd4 {[%clk 0:01:45.2]} 42...
Ke6 {[%clk 0:02:31]} 43. Ke4 {[%clk 0:01:42.7]} 43... Ne1 {[%clk 0:02:20.9]} 44.
g5 {[%clk 0:01:39.6]} 44... Kf7 {[%clk 0:02:16.7]} 45. Bf2 {[%clk 0:01:32.6]}
45... Nc2 {[%clk 0:02:12.9]} 46. a4 {[%clk 0:01:28.7]} 46... Kg6 {[%clk
0:02:11.5]} 47. Kf4 {[%clk 0:01:24.2]} 47... Nb4 {[%clk 0:02:06.3]} 48. Bd4
{[%clk 0:01:16.4]} 48... Nd5+ {[%clk 0:02:05]} 49. Kg4 {[%clk 0:01:12.3]} 49...
a5 {[%clk 0:01:59.3]} 50. Be5 {[%clk 0:01:07.5]} 50... Ne3+ {[%clk 0:01:56.8]}
51. Kf4 {[%clk 0:01:02.8]} 51... Ng2+ {[%clk 0:01:53]} 52. Kg4 {[%clk
0:01:01.2]} 52... Ne3+ {[%clk 0:01:50.6]} 53. Kf3 {[%clk 0:01:00.1]} 53... Nc4
{[%clk 0:01:45.1]} 54. Bf4 {[%clk 0:00:58.4]} 54... Nb2 {[%clk 0:01:40.3]} 55.
Kg4 {[%clk 0:00:53.9]} 55... Nxa4 {[%clk 0:01:38.6]} 56. Bd2 {[%clk 0:00:52.9]}
56... c5 {[%clk 0:01:29.7]} 57. Bxa5 {[%clk 0:00:52]} 57... c4 {[%clk
0:01:28.7]} 58. Bd2 {[%clk 0:00:46.7]} 58... c3 {[%clk 0:01:27.2]} 59. Bc1
{[%clk 0:00:45.6]} 59... c2 {[%clk 0:01:25.3]} 60. Kf3 {[%clk 0:00:44.6]} 60...
Nc3 {[%clk 0:01:24.1]} 61. Ke3 {[%clk 0:00:40.7]} 61... Na2 {[%clk 0:01:20.8]}
62. Kd2 {[%clk 0:00:38.2]} 62... Nb4 {[%clk 0:01:15.1]} 63. Kc3 {[%clk
0:00:34.8]} 63... Na2+ {[%clk 0:01:11.4]} 64. Kxc2 {[%clk 0:00:33.7]} 64... Nxc1
{[%clk 0:01:10.8]} 65. Kxc1 {[%clk 0:00:32.7]} 65... Kxg5 {[%clk 0:01:10.3]}
1/2-1/2

[Event "Live Chess"]
[Site "Chess.com"]
[Date "2023.05.21"]
[Round "-"]
[White "Sha_25"]
[Black "yeetpizza74"]
[Result "1-0"]
[WhiteElo "1149"]
[BlackElo "501"]
[TimeControl "300"]
[EndTime "4:30:48 PDT"]
[Termination "Sha_25 won by checkmate"]

1. b3 {[%clk 0:04:57.6]} 1... d5 {[%clk 0:04:57.6]} 2. Bb2 {[%clk 0:04:56.9]}
2... Nc6 {[%clk 0:04:54.2]} 3. e3 {[%clk 0:04:55.2]} 3... e5 {[%clk 0:04:49.9]}
4. d4 {[%clk 0:04:51.6]} 4... exd4 {[%clk 0:04:48.5]} 5. exd4 {[%clk 0:04:51.5]}
5... Nf6 {[%clk 0:04:43.6]} 6. Nf3 {[%clk 0:04:50.4]} 6... Bg4 {[%clk
0:04:41.5]} 7. Be2 {[%clk 0:04:49.7]} 7... Bxf3 {[%clk 0:04:39.5]} 8. Bxf3
{[%clk 0:04:48.4]} 8... Bd6 {[%clk 0:04:35.3]} 9. O-O {[%clk 0:04:45.9]} 9...
O-O {[%clk 0:04:33.4]} 10. Nd2 {[%clk 0:04:42.8]} 10... Re8 {[%clk 0:04:16.2]}
11. c4 {[%clk 0:04:38.9]} 11... dxc4 {[%clk 0:04:11.2]} 12. Nxc4 {[%clk
0:04:37.9]} 12... Bb4 {[%clk 0:03:37.4]} 13. Bxc6 {[%clk 0:04:34.5]} 13... bxc6
{[%clk 0:03:34.5]} 14. a3 {[%clk 0:04:33.4]} 14... Bd6 {[%clk 0:03:29]} 15. Re1
{[%clk 0:04:26.3]} 15... Rxe1+ {[%clk 0:03:26.6]} 16. Qxe1 {[%clk 0:04:26.1]}
16... c5 {[%clk 0:03:22.9]} 17. dxc5 {[%clk 0:04:23.6]} 17... Bxc5 {[%clk
0:03:20.9]} 18. Rd1 {[%clk 0:04:21.7]} 18... Qc8 {[%clk 0:03:13.7]} 19. Qe5
{[%clk 0:04:15.5]} 19... Nd7 {[%clk 0:02:47.3]} 20. Qxg7# {[%clk 0:04:10.1]} 1-0

[Event "Live Chess"]
[Site "Chess.com"]
[Date "2023.05.21"]
[Round "-"]
[White "ExIsambard"]
[Black "f4nomore"]
[Result "1-0"]
[WhiteElo "1902"]
[BlackElo "1385"]
[TimeControl "300"]
[EndTime "4:31:05 PDT"]
[Termination "ExIsambard won by resignation"]

1. d4 {[%clk 0:04:59.1]} 1... d6 {[%clk 0:04:59.9]} 2. Nf3 {[%clk 0:04:57.1]}
2... g6 {[%clk 0:04:59.8]} 3. Bg5 {[%clk 0:04:56.5]} 3... Bg7 {[%clk 0:04:59.7]}
4. e3 {[%clk 0:04:55.9]} 4... h6 {[%clk 0:04:54.5]} 5. Bh4 {[%clk 0:04:54.7]}
5... g5 {[%clk 0:04:53]} 6. Bg3 {[%clk 0:04:53.9]} 6... Nf6 {[%clk 0:04:51.3]}
7. Bd3 {[%clk 0:04:53.4]} 7... O-O {[%clk 0:04:49.5]} 8. Nbd2 {[%clk 0:04:53.1]}
8... Nc6 {[%clk 0:04:47.5]} 9. c3 {[%clk 0:04:52.1]} 9... e5 {[%clk 0:04:45.2]}
10. dxe5 {[%clk 0:04:51]} 10... dxe5 {[%clk 0:04:43.7]} 11. Qe2 {[%clk
0:04:47.1]} 11... e4 {[%clk 0:04:38.9]} 12. Nxe4 {[%clk 0:04:45.7]} 12... Nxe4
{[%clk 0:04:35.3]} 13. Bxe4 {[%clk 0:04:45.6]} 13... Bg4 {[%clk 0:04:32.4]} 14.
O-O {[%clk 0:04:41.6]} 14... a6 {[%clk 0:04:27.1]} 15. h3 {[%clk 0:04:35.4]}
15... Bh5 {[%clk 0:04:22.8]} 16. Qc2 {[%clk 0:04:27.5]} 16... Bxf3 {[%clk
0:04:05.2]} 17. Bxf3 {[%clk 0:04:25.8]} 17... f5 {[%clk 0:04:04]} 18. Bxc6
{[%clk 0:04:19.2]} 18... bxc6 {[%clk 0:04:01]} 19. Qb3+ {[%clk 0:04:19.1]} 19...
Kh8 {[%clk 0:03:57.5]} 20. Rad1 {[%clk 0:04:17.5]} 20... Qf6 {[%clk 0:03:55.4]}
21. Bxc7 {[%clk 0:04:09.1]} 21... Rf7 {[%clk 0:03:50.8]} 22. Bd6 {[%clk
0:03:54.9]} 22... Rd7 {[%clk 0:03:42.8]} 23. Bc5 {[%clk 0:03:52.9]} 23... Rxd1
{[%clk 0:03:22.5]} 24. Rxd1 {[%clk 0:03:51.6]} 24... a5 {[%clk 0:03:21]} 25. Bd4
{[%clk 0:03:48.3]} 25... Qg6 {[%clk 0:03:17.5]} 26. Qb7 {[%clk 0:03:40]} 26...
Rg8 {[%clk 0:03:14.3]} 27. Bxg7+ {[%clk 0:03:33.8]} 27... Rxg7 {[%clk
0:03:12.8]} 28. Rd7 {[%clk 0:03:26.5]} 28... Kh7 {[%clk 0:03:10.8]} 29. Rxg7+
{[%clk 0:03:21.6]} 29... Qxg7 {[%clk 0:03:09.9]} 30. Qxc6 {[%clk 0:03:18.9]}
30... f4 {[%clk 0:03:06.1]} 31. Qe4+ {[%clk 0:03:16]} 31... Kh8 {[%clk
0:03:03.5]} 32. exf4 {[%clk 0:03:14.9]} 32... gxf4 {[%clk 0:03:01.8]} 33. Qxf4
{[%clk 0:03:13.9]} 33... Qd7 {[%clk 0:02:59.5]} 34. Qe5+ {[%clk 0:03:11.5]}
34... Kg8 {[%clk 0:02:57.2]} 35. Qd4 {[%clk 0:02:58.2]} 1-0